{"text_format":"1","workbook":"xlsx","n_sheets":49,"sheets":["modProv","Инструкция","Лог обновления","Титульный","Территории","Дифференциация","Форма 1.0.1","Форма 4.6","Сведения об изменении","Форма 1.0.2","Комментарии","Проверка","modReestr","AllSheetsInThisWorkbook","TEHSHEET","modCheckCyan","modInfo","et_union_hor","et_union_vert","modList00","modList01","modList02","modList03","modList04","modList07","modList09","modHTTP","modfrmRegion","MR_LIST","REESTR_VT","REESTR_VED","modfrmReestrObj","DataOrg","modfrmReestr","modUpdTemplMain","REESTR_ORG","modClassifierValidate","modHyp","modfrmDateChoose","modComm","modThisWorkbook","REESTR_MO","REESTR_MO_FILTER","modfrmReestrMR","modServiceModule","modfrmCheckUpdates","REESTR_DS","REESTR_CHS","REESTR_LINK"],"not_rendered":{"charts":0,"images":22,"macros":1,"external_links":0,"defined_names":176,"comments":3,"pivot_tables":0},"unopened":[],"bounds":{"document_bytes":16777216,"sheet_cells":100000,"rows_first":2000,"rows_last":500,"rows_between":2000,"halvings":0,"cell_chars":16384,"cell_head_chars":4096},"cells_cut":0,"cells_raw":0,"read":"whole","date_system":"1900"}

{"sheet":"modProv","index":0,"n_rows":0,"n_cols":0,"rows_kept":0,"cut":false,"hidden":true,"merged":[]}

{"sheet":"Инструкция","index":1,"n_rows":83,"n_cols":27,"rows_kept":83,"cut":false,"hidden":false,"merged":[[82,5,82,23],[60,7,60,23],[78,4,78,23],[72,5,72,23],[73,5,73,23],[74,4,74,23],[75,4,75,23],[76,4,76,23],[77,4,77,23],[69,4,69,19],[39,4,39,23],[40,4,44,23],[45,4,56,23],[80,5,80,18],[58,4,58,6],[58,7,58,23],[59,4,59,6],[71,5,71,23],[57,4,57,20],[70,4,70,19],[34,4,38,23],[22,15,22,22],[21,5,21,12],[1,1,1,6],[2,1,2,2],[4,1,4,24],[6,4,18,23],[20,5,20,12],[20,15,20,23],[21,15,21,23]]}
[null,null,null,null,null,null,null,null,null,null,null,null,null,null,null,null,null,null,null,null,null,null,null,null,null,null," (требуется обновление)"]
[null,{"$f":"\"Код отчёта: \" & GetCode()","v":"Код отчёта: FAS.JKH.OPEN.INFO.QUARTER.WARM"}]
[null,{"$f":"\"Версия \" & GetVersion()","v":"Версия 1.0.1"}]
[]
[null,{"$f":"Титульный!E5","v":"Информация о наличии (отсутствии) технической возможности подключения к системе теплоснабжения, а также о регистрации и ходе реализации заявок о подключении к системе теплоснабжения "}]
[]
[null,null,null,null,"• На рабочем месте должен быть установлен MS Office 2007 SP3, 2010, 2013, 2016 с полной версией MS Excel\n\n• Макросы во время работы должны быть включены (!)\n\n• Для корректной работы отчёта требуется выбрать низкий уровень безопасности\n(В меню MS Excel 2007/2010/2013/2016: Параметры Excel | Центр управления безопасностью | Параметры центра управления безопасностью | Параметры макросов | Включить все макросы | ОК)\n\n• Если Вы работаете в табличном процессоре MS Excel 2007 и выше, то можете использовать для работы формат XLSB (Двоичная книга Excel). При работе в формате XLSB заметно быстрее происходит сохранение файла, а также уменьшается размер по сравнению с форматами XLS и XLSM\n\n• Не рекомендуется снимать защиту с листов и каким-либо образом модифицировать защищаемые формулы и расчётные поля, в противном случае, отчёт будет отклонён системой\n\n• При сохранении не следует выбирать формат XLSX (Книга Excel), так как в указанном формате макросы, необходимые для работы отчёта, безвозвратно удаляются"]
[]
[]
[]
[]
[]
[]
[]
[]
[]
[]
[]
[]
[]
[null,null,null,null,"A"," - не обязательные для заполнения",null,null,null,null,null,null,null,null,"A"," - с формулами и константами"]
[null,null,null,null,"A"," - обязательные для заполнения",null,null,null,null,null,null,null,null,"A"," - с выбором значений до двойному клику"]
[]
[]
[]
[]
[]
[]
[]
[]
[]
[]
[]
[]
[null,null,null,null,"Если в предложенном Вам списке необходимая организация, МР/МО отсутствуют, обновите реестры с помощью кнопок\n\nВ результате синхронизации с базой данных список организаций (МР/МО) будет заменён актуальным (механизм синхронизации требует подключения к сети Интернет и основан на использовании протокола HTTPS (TCP порт 443))\n\nЕсли после обновления Вам не удалось найти необходимую организацию в списке, обратитесь к ответственному за поддержание реестра Вашего региона."]
[]
[]
[]
[]
[]
[]
[]
[]
[]
[]
[null,null,null,null,"• При сохранении шаблона осуществляется проверка корректности данных, в том числе на наличие значений в ячейках, обязательных для заполнения\n\n• Если какая-то ячейка не удовлетворяет условию проверки, на лист «Проверка» добавляется гиперссылка на данную ячейку и указывается причина ошибки\n\n• В колонке «Статус» для каждого сообщения возможны 2 значения: ошибка и предупреждение\n\n• При наличии сообщений со статусом «Ошибка» шаблон будет отклонён системой и не будет загружен в хранилище данных, сообщения со статусом «Предупреждение» носят информационный характер, и такой шаблон будет принят системой"]
[]
[]
[]
[]
[]
[]
[]
[]
[]
[]
[]
[null,null,null,null,"Обратиться за помощью в службу технической поддержки"]
[]
[]
[]
[]
[]
[]
[]
[]
[]
[]
[]
[null,null,null,null,"Инструкция по загрузке сопроводительных материалов"]
[null,null,null,null,"Инструкция по работе с отчетной формой"]
[]
[]
[]
[]
[]
[]
[]
[null,null,null,null,"При наличии подключения к Интернет, можно автоматически проверять наличие доступных обновлений. Выберите способ оповещения о наличии обновлений для отчёта:"]
[]
[null,null,null,null,null,"проверять доступные обновления (рекомендуется)",null,null,null,null,null,null,null,null,null,null,null,null,null,null,null,null,null,null,null,null,"y"]
[]
[null,null,null,null,null,"никогда не проверять наличие обновлений (не рекомендуется)"]

{"sheet":"Лог обновления","index":2,"n_rows":20,"n_cols":3,"rows_kept":20,"cut":false,"hidden":true,"merged":[]}
["Дата/Время","Сообщение","Статус"]
["2018-10-29T13:32:56","Проверка доступных обновлений...","Информация"]
["2018-10-29T13:32:57","Доступно обновление до версии 1.0.1","Информация"]
["2018-10-29T13:32:57","Описание изменений: Версия 1.0.1\n1. Исправление ошибки с удалением видов деятельности","Информация"]
["2018-10-29T13:32:58","Размер файла обновления: 376832 байт","Информация"]
["2018-10-29T13:33:01","Подготовка к обновлению...","Информация"]
["2018-10-29T13:33:10","Сохранение файла резервной копии: \\\\tc_\\dfsserver\\users2\\glazunova.os\\Рабочий стол\\Юля раскрытие 3 кв2018\\FAS.JKH.OPEN.INFO.QUARTER.WARM ФАС.xls.BKP..xlsb","Информация"]
["2018-10-29T13:33:20","Резервная копия создана: \\\\tc_\\dfsserver\\users2\\glazunova.os\\Рабочий стол\\Юля раскрытие 3 кв2018\\FAS.JKH.OPEN.INFO.QUARTER.WARM ФАС.xls.BKP..xlsb","Информация"]
["2018-10-29T13:33:20","Создание книги для установки обновлений...","Информация"]
["2018-10-29T13:33:32","Файл обновления загружен: \\\\tc_\\dfsserver\\users2\\glazunova.os\\Рабочий стол\\Юля раскрытие 3 кв2018\\UPDATE.FAS.JKH.OPEN.INFO.QUARTER.WARM.TO.1.0.1.31.xls","Информация"]
["2018-10-29T13:33:44","Обновление завершилось удачно! Шаблон FAS.JKH.OPEN.INFO.QUARTER.WARM ФАС.xls сохранен под именем 'FAS.JKH.OPEN.INFO.QUARTER.WARM ФАС(v1.0.1).xls'","Информация"]
["2018-10-30T15:18:19","Проверка доступных обновлений...","Информация"]
["2018-10-30T15:18:21","Нет доступных обновлений для отчёта с кодом FAS.JKH.OPEN.INFO.QUARTER.WARM!","Информация"]
["2018-10-30T15:18:40","Проверка доступных обновлений...","Информация"]
["2018-10-30T15:18:42","Нет доступных обновлений для отчёта с кодом FAS.JKH.OPEN.INFO.QUARTER.WARM!","Информация"]
["2018-10-30T15:19:09","Проверка доступных обновлений...","Информация"]
["2018-10-30T15:19:10","Нет доступных обновлений для отчёта с кодом FAS.JKH.OPEN.INFO.QUARTER.WARM!","Информация"]
["2018-10-30T15:20:49","Проверка доступных обновлений...","Информация"]
["2018-10-30T15:20:51","Нет доступных обновлений для отчёта с кодом FAS.JKH.OPEN.INFO.QUARTER.WARM!","Информация"]
["2018-10-30T16:41:08","Проверка доступных обновлений...","Информация"]

{"sheet":"Титульный","index":3,"n_rows":45,"n_cols":6,"rows_kept":45,"cut":false,"hidden":false,"merged":[[4,4,4,5],[44,4,44,5]]}
[null,null,null,null,null,26555650]
[]
[]
[null,null,null,null,null,{"$f":"version","v":"Версия 1.0.1"}]
[null,null,null,null,"Информация о наличии (отсутствии) технической возможности подключения к системе теплоснабжения, а также о регистрации и ходе реализации заявок о подключении к системе теплоснабжения "]
[]
[null,null,null,null,"Субъект РФ","г.Санкт-Петербург"]
[]
[null,null,null,null,"Публикация2","На сайте регулирующего органа"]
[]
[null,null,null,null,"Отсутствует Интернет в границах территории МО, где организация осуществляет регулируемые виды деятельности","нет"]
[]
[null,null,null,null,"Тип отчета","первичное раскрытие информации"]
[null,null,null,null,"Дата внесения изменений в информацию, подлежащую раскрытию","30.10.2018"]
[]
[null,null,null,null,"Применяется дифференциация тарифа по централизованным системам теплоснабжения?"]
[null,null,null,null,"Информация по скольким централизованным системам теплоснабжения будет заполнена в шаблоне?"]
[]
[null,null,null,null,null,"Отчетный период"]
[null,null,2018,null,"Год",2018]
[null,null,"III квартал",null,"Квартал","III квартал"]
[]
[null,null,null,null,"Является ли данное юридическое лицо подразделением (филиалом) другой организации","нет"]
[]
[]
[null,null,null,null,"Наименование организации","АО \"Теплосеть Санкт-Петербурга\""]
[null,null,null,null,"Наименование филиала"]
[null,null,null,null,"ИНН","7810577007"]
[null,null,null,null,"КПП","781001001"]
[null,null,null,null,"Вид деятельности"]
[]
[null,null,null,null,"Тип теплоснабжающей организации","Регулируемая организация"]
[]
[null,null,null,null,"Почтовый адрес регулируемой организации","191119, Санкт-Петербург, ул. Черняховского, д. 36"]
[null,null,null,null,"Фамилия, имя, отчество руководителя","Стренадко Игорь Михайлович"]
[]
[null,null,null,null,null,"Ответственный за составление формы"]
[null,null,null,null,"Фамилия, имя, отчество","Глазунова Ольга Сергеевна"]
[null,null,null,null,"Должность","Начальник отдела тарифного регулирования"]
[null,null,null,null,"(код) номер телефона","(812) 688-46-97"]
[null,null,null,null,"e-mail","glazunova.os@teplosetspb.ru"]
[]
[]
[]
[null,null,null,null,"В соответствии с пунктом 33.12 Постановления Правительства РФ от 5 июля 2013 г. № 570 \"О стандартах раскрытия информации теплоснабжающими организациями, теплосетевыми организациями и органами регулирования\" теплоснабжающей организацией и теплосетевой организацией в ценовых зонах теплоснабжения информация категории \"о наличии (об отсутствии) технической возможности подключения (технологического присоединения) к системе теплоснабжения, а также о регистрации и ходе реализации заявок на подключение (технологическое присоединение) к системе теплоснабжения\" раскрытию не подлежит"]

{"sheet":"Территории","index":4,"n_rows":17,"n_cols":18,"rows_kept":17,"cut":false,"hidden":false,"merged":[[8,5,8,6],[8,8,8,9],[9,5,9,6],[9,8,9,9],[3,3,3,7],[5,3,5,4],[5,5,5,6],[7,3,7,4],[7,5,7,7],[7,8,7,11],[12,7,14,7],[11,2,15,2],[11,3,15,3],[11,4,15,4],[12,5,14,5],[12,6,14,6]]}
[null,null,null,null,null,null,null,null,null,null,"МО","ОКТМО","МР"]
[]
[]
[null,null,null,"Перечень муниципальных районов и муниципальных образований (территорий действия тарифа)"]
[]
[null,null,null,null,null,"да"]
[]
[null,null,null,"Территория действия тарифа",null,"Муниципальный район",null,null,"Муниципальное образование"]
[null,null,null,"№ п/п","Наименование","№ п/п",null,"Наименование","№ п/п",null,"Наименование","ОКТМО"]
[null,null,null,"1","2","3",null,"4","5",null,"6","7"]
[null,null,null,0,null,"",null,null,"",null,null,null,"размерженный МР",null,null,"флаг используемости территории на листе Перечень тарифов","копия территорий","МР (ОКТМО)"]
[null,"auto",null,1,"город Санкт-Петербург, город Санкт-Петербург (40000000);","",0,null,"","0",null,null,{"$f":"mergeValue(H12)","v":0},null,null,{"$f":"IF(ISERROR(MATCH(MID(Q12,1,250),MID(note_ter,1,250),0)),\"n\",\"y\")","v":"y"},"город Санкт-Петербург, город Санкт-Петербург (40000000);",{"$f":"K12&\"(\"&L12&\")\"","v":"()"}]
[null,"auto",null,null,null,"",1,"город Санкт-Петербург","","0",null,null,{"$f":"mergeValue(H13)","v":"город Санкт-Петербург"},null,null,null,null,{"$f":"K13&\"(\"&L13&\")\"","v":"()"}]
[null,"auto",null,null,null,null,null,null,"",1,"город Санкт-Петербург","40000000",{"$f":"mergeValue(H14)","v":"город Санкт-Петербург"},null,null,null,null,{"$f":"K14&\" (\"&L14&\")\"","v":"город Санкт-Петербург (40000000)"}]
[null,null,null,null,null,null,null,null,"",null,""]
[null,null,null,null,null,"","","",""]
[null,"man",null,null,"","",null,null,"",null,null,null,null,null,null,null,"Добавить территорию действия тарифа"]

{"sheet":"Дифференциация","index":5,"n_rows":26,"n_cols":26,"rows_kept":26,"cut":false,"hidden":false,"merged":[[17,0,18,0],[17,3,17,4],[3,3,3,8],[4,3,4,8],[7,4,7,5],[8,1,8,3],[5,0,6,5],[7,1,7,3],[8,4,8,5],[9,1,9,3],[9,4,9,5],[13,1,13,3],[10,4,10,5],[10,1,10,3],[24,2,25,2],[11,1,11,3],[12,1,12,3],[21,4,23,4],[21,5,23,5],[21,3,23,3],[17,5,17,8],[21,6,22,6],[21,7,22,7],[21,8,22,8],[21,9,22,9],[17,9,17,12],[19,6,19,7],[19,10,19,11],[18,10,18,11],[18,6,18,7]]}
[]
[]
[]
[null,null,null,{"$f":"Титульный!E5","v":"Информация о наличии (отсутствии) технической возможности подключения к системе теплоснабжения, а также о регистрации и ходе реализации заявок о подключении к системе теплоснабжения "}]
[null,null,null,{"$f":"IF(org=0,\"Не определено\",org)","v":"АО \"Теплосеть Санкт-Петербурга\""}]
[]
[]
[]
[]
[]
[]
[]
[]
[]
[]
[]
[]
[null,null,null,"Вид деятельности",null,"Дифференциация по территориям оказания услуг",null,null,null,"Дифференциация по централизованным системам коммунальной инфраструктуры"]
[null,null,null,"№ п/п","Наименование","да/нет","№ п/п",null,"Наименование","да/нет","№ п/п",null,"Наименование"]
[null,null,null,"1","2","3","4",null,"5","6","7",null,"8"]
[]
[null,null,null,"1","Подключение (технологическое присоединение) к системе теплоснабжения","да",null,1,"город Санкт-Петербург, город Санкт-Петербург (40000000);","да","","1","Основная система теплоснабжения",null,null,null,null,null,null,null,null,null,null,4190072,"a",1705000]
[null,null,null,null,null,null,null,null,null,null,"",null,""]
[null,null,null,null,null,null,null,null,"",null,""]
[null,null,null,null,"",null,null,null,null,null,""]
[null,null,null,null,null,null,null,null,null,null,""]

{"sheet":"Форма 1.0.1","index":6,"n_rows":20,"n_cols":7,"rows_kept":20,"cut":false,"hidden":false,"merged":[[19,4,19,5],[4,3,4,6],[5,3,5,6],[7,3,7,6],[8,3,8,5],[8,6,9,6]]}
[null,null,null,null,null,null,4]
[]
[]
[]
[null,null,null,"Форма 1.0.1 Основные параметры раскрываемой информации 1"]
[null,null,null,{"$f":"IF(org=0,\"Не определено\",org)","v":"АО \"Теплосеть Санкт-Петербурга\""}]
[]
[null,null,22,"Форма 1.0.1"]
[null,null,null,"Параметры формы",null,null,"Описание параметров формы"]
[null,null,null,"№ п/п","Наименование параметра","Информация"]
[null,null,null,"1",2,3,4]
[null,null,null,1,"Дата заполнения/внесения изменений",{"$f":"IF(form_up_date=\"\",\"\",form_up_date)","v":"30.10.2018"},"Указывается календарная дата первичного заполнения или внесения изменений в форму в виде «ДД.ММ.ГГГГ»."]
[null,null,null,"2.1","Наименование централизованной системы коммунальной инфраструктуры","Основная система теплоснабжения","Указывается наименование централизованной системы холодного водоснабжения/горячего водоснабжения/водоотведения/теплоснабжения, к которой относится размещаемая информация.\nВ случае наличия нескольких централизованных систем коммунальной инфраструктуры, информация по каждой из них указывается в отдельной строке. "]
[null,null,null,"3.1","Наименование регулируемого вида деятельности","Подключение (технологическое присоединение) к системе теплоснабжения","Указывается наименование вида регулируемой деятельности."]
[null,null,null,"4.1","Территория оказания услуги по регулируемому виду деятельности","x"]
[null,null,null,{"$f":"D15&\".1\"","v":"4.1.1"},"Субъект РФ",{"$f":"IF(region_name=\"\",\"\",region_name)","v":"г.Санкт-Петербург"},"Указывается наименование субъекта Российской Федерации"]
[null,null,null,"4.1.1.1","муниципальный район","город Санкт-Петербург","Указывается наименование муниципального района, на территории которого организация оказывает услуги по регулируемому виду деятельности."]
[null,null,null,"4.1.1.1.1","муниципальное образование","город Санкт-Петербург (40000000)","Указывается наименование и код муниципального района, муниципального образования в соответствии с Общероссийским классификатором территорий муниципальных образований (далее - ОКТМО), входящего в муниципальный район, на территории которого организация оказывает услуги по регулируемому виду деятельности.\nВ случае оказания услуг по регулируемому виду деятельности на территории нескольких муниципальных районов (муниципальных образований) данные по каждому их них указываются в отдельной строке."]
[]
[null,null,null,null,"  1 Информация по данной форме публикуется при раскрытии информации по каждой из форм."]

{"sheet":"Форма 4.6","index":7,"n_rows":18,"n_cols":8,"rows_kept":18,"cut":false,"hidden":false,"merged":[[7,7,8,7],[4,3,4,6],[5,3,5,6],[7,3,8,3],[7,4,8,4],[7,5,8,5]]}
[null,null,null,null,null,null,4]
[null,null,null,null,null,"Гкал/час",null,"Указывается резерв мощности для системы теплоснабжения, тариф для которой не является отличным от тарифов других систем теплоснабжения регулируемой организации.\nПри использовании регулируемой организацией нескольких систем теплоснабжения информация о резерве мощности таких систем указывается в отношении каждой системы теплоснабжения в отдельных строках."]
[]
[]
[null,null,null,{"$f":"Титульный!E5","v":"Информация о наличии (отсутствии) технической возможности подключения к системе теплоснабжения, а также о регистрации и ходе реализации заявок о подключении к системе теплоснабжения "}]
[null,null,null,{"$f":"IF(org=0,\"Не определено\",org)","v":"АО \"Теплосеть Санкт-Петербурга\""}]
[null,null,null,null,null,null,22]
[null,null,null,"№ п/п","Наименование параметра","Единица измерения","Вид деятельности:\r\n  - Подключение (технологическое присоединение) к системе теплоснабжения\r\n\r\nТерритория оказания услуг:\r\n  - город Санкт-Петербург, город Санкт-Петербург (40000000);\r\n\r\nЦентрализованная система теплоснабжения:\r\n  - Основная система теплоснабжения","Описание параметров формы"]
[null,null,null,null,null,null,"Информация"]
[null,null,null,"1","2","3",{"$f":"G1&\".1\"","v":"4.1"}]
[null,null,null,1,"Количество поданных заявок","ед",14,"Указывается количество поданных заявок на подключение (технологическое присоединение) к системе теплоснабжения в течение отчетного квартала."]
[null,null,null,2,"Количество исполненных заявок","ед",14,"Указывается количество исполненных заявок на подключение (технологическое присоединение) к системе теплоснабжения в течение отчетного квартала."]
[null,null,null,3,"Количество заявок с решением об отказе в подключении","ед",0,"Указывается количество заявок с решением об отказе о подключении (технологическому присоединению) к системе теплоснабжения в течение отчетного квартала."]
[null,null,null,4,"Причины отказа в подключении","x",null,"Указывается текстовое описание причин принятия решений об отказе в подключении (технологическом присоединении) к системе теплоснабжения.\nНе заполняется в случае, если решения об отказе в подключении (технологическом присоединении) в течение отчетного периода не принимались."]
[null,null,null,5,"Резерв мощности системы теплоснабжения в течение квартала, в том числе:","Гкал/час",{"$f":"SUM(G16:G18)","v":0},"Указывается резерв мощности системы теплоснабжения (совокупности систем теплоснабжения в случае, если для них установлены одинаковые тарифы в сфере теплоснабжения.\nВ случае если регулируемыми организациями оказываются услуги по теплоснабжению по нескольким технологически не связанным между собой системам теплоснабжения, и если в отношении указанных систем устанавливаются различные тарифы в сфере теплоснабжения, то информация раскрывается отдельно по каждой системе теплоснабжения."]
[null,null,null,"5.0"]
[null,null,null,"5.1","Основная система теплоснабжения","Гкал/час",0,"Указывается резерв мощности для системы теплоснабжения, тариф для которой не является отличным от тарифов других систем теплоснабжения регулируемой организации.\nПри использовании регулируемой организацией нескольких систем теплоснабжения информация о резерве мощности таких систем указывается в отношении каждой системы теплоснабжения в отдельных строках."]
[null,null,null,null,"Добавить централизованную систему теплоснабжения"]

{"sheet":"Сведения об изменении","index":8,"n_rows":14,"n_cols":5,"rows_kept":14,"cut":false,"hidden":true,"merged":[[6,3,6,4],[7,3,7,4]]}
[]
[]
[]
[]
[]
[]
[null,null,null,"Сведения об изменениях в первоначально опубликованной информации"]
[null,null,null,{"$f":"IF(org=0,\"Не определено\",org)","v":"АО \"Теплосеть Санкт-Петербурга\""}]
[]
[null,null,null,"№ п/п","Сведения"]
[null,null,null,"1","2"]
[null,null,null,0]
[null,null,null,1]
[null,null,null,null,"Добавить строку"]

{"sheet":"Форма 1.0.2","index":9,"n_rows":15,"n_cols":13,"rows_kept":15,"cut":false,"hidden":true,"merged":[[11,10,12,10],[14,4,14,9],[4,3,4,9],[7,3,7,9],[7,10,9,10],[8,3,9,3],[8,4,8,5],[8,6,8,9]]}
[]
[]
[]
[]
[null,null,null,"Форма 1.0.2 Информация о публикации в печатных изданиях 2"]
[]
[]
[null,null,null,"Параметры формы",null,null,null,null,null,null,"Описание параметров формы"]
[null,null,null,"№ п/п","Форма публикации",null,"Официальное печатное издание"]
[null,null,null,null,"Номер","Наименование","Наименование","Номер","Дата выпуска","Ссылка на документ"]
[null,null,null,"1","2","3","4","5","6","7","8"]
["3","",null,"1",null,null,null,null,null,null,"В колонке «Дата выпуска» дата выпуска печатного издания указывается в виде «ДД.ММ.ГГГГ».\nВ колонке «Ссылка на документ» указывается ссылка на отсканированную копию печатного издания, предварительно загруженную в хранилище федеральной государственной информационной системы «Единая информационно-аналитическая система «Федеральный орган регулирования - региональные органы регулирования - субъекты регулирования» (далее – ФГИС ЕИАС), с опубликованной информацией.\nВ случае публикации информации в нескольких печатных изданиях информация по каждому из них указывается в отдельной строке.",null,{"$f":"IF(ISERROR(INDEX(kind_of_nameforms,MATCH(E12,kind_of_forms,0),1)),\"\",INDEX(kind_of_nameforms,MATCH(E12,kind_of_forms,0),1))","v":""}]
[null,null,null,null,"Добавить строку"]
[]
[null,null,null,null,"2 В данной форме публикуется информация по каждой из форм раскрытия, данные в которой относятся к муниципальному образованию, в котором отсутствует доступ в информационно-телекоммуникационную сеть «Интернет» (далее – сеть «Интернет»)."]

{"sheet":"Комментарии","index":10,"n_rows":13,"n_cols":5,"rows_kept":13,"cut":false,"hidden":false,"merged":[[6,3,6,4],[7,3,7,4]]}
[]
[]
[]
[]
[]
[]
[null,null,null,"Комментарии"]
[null,null,null,{"$f":"IF(org=0,\"Не определено\",org)","v":"АО \"Теплосеть Санкт-Петербурга\""}]
[]
[null,null,null,"№ п/п","Комментарий"]
[null,null,null,"1","2"]
[null,null,null,0]
[null,null,null,null,"Добавить"]

{"sheet":"Проверка","index":11,"n_rows":4,"n_cols":5,"rows_kept":4,"cut":false,"hidden":false,"merged":[[1,1,1,4]]}
[]
[null,"Результат проверки"]
[]
[null,"Ссылка1","Ссылка2","Причина","Статус"]

{"sheet":"modReestr","index":12,"n_rows":0,"n_cols":0,"rows_kept":0,"cut":false,"hidden":true,"merged":[]}

{"sheet":"AllSheetsInThisWorkbook","index":13,"n_rows":39,"n_cols":2,"rows_kept":39,"cut":false,"hidden":true,"merged":[]}
["Расчетные листы","Скрытые листы"]
["Инструкция","modReestr"]
["Лог обновления","AllSheetsInThisWorkbook"]
["Титульный","TEHSHEET"]
["Территории","modCheckCyan"]
["Дифференциация","modInfo"]
["Форма 1.0.1","et_union_hor"]
["Форма 4.6","et_union_vert"]
["Сведения об изменении","modList00"]
["Форма 1.0.2","modList01"]
["Комментарии","modList02"]
["Проверка","modList03"]
[null,"modList04"]
[null,"modList07"]
[null,"modList09"]
[null,"modHTTP"]
[null,"modfrmRegion"]
[null,"MR_LIST"]
[null,"REESTR_VT"]
[null,"REESTR_VED"]
[null,"modfrmReestrObj"]
[null,"DataOrg"]
[null,"modProv"]
[null,"modfrmReestr"]
[null,"modUpdTemplMain"]
[null,"REESTR_ORG"]
[null,"modClassifierValidate"]
[null,"modHyp"]
[null,"modfrmDateChoose"]
[null,"modComm"]
[null,"modThisWorkbook"]
[null,"REESTR_MO"]
[null,"REESTR_MO_FILTER"]
[null,"modfrmReestrMR"]
[null,"modServiceModule"]
[null,"modfrmCheckUpdates"]
[null,"REESTR_DS"]
[null,"REESTR_CHS"]
[null,"REESTR_LINK"]

{"sheet":"TEHSHEET","index":14,"n_rows":87,"n_cols":20,"rows_kept":87,"cut":false,"hidden":true,"merged":[[0,18,0,19]]}
["REGION",null,"year_list","logical","Месяц\n(MONTH)","Квартал\n(QUARTER)","Месяц\n(kind_of_publication)","Единица измерения объема оказываемых услуг ГВС\n/kind_of_unit_GVS/","Вид тарифа\n/list_of_tariff/","mr_id","версия шаблона\n (DocProp_Version)","0.1","Тип отчета\ndata_type","type_org_list",null,null,null,null,"Перечень форм\n(kind_of_forms)"]
["Алтайский край",null,2013,"да","январь","I квартал","На официальном сайте организации","тыс.куб.м/сутки",null,52,"код шаблона\n(DocProp_TemplateCode)","FAS.JKH.OPEN.INFO.QUARTER.HVS","первичное раскрытие информации","Регулируемая организация",null,null,null,null,"Форма 1.0.1","Основные параметры раскрываемой информации"]
["Амурская область",null,2014,"нет","февраль","II квартал","На сайте регулирующего органа","Гкал/час","Без дифференциации","sys_id","сфера\n(TSphere)","ХВС","изменения в раскрытой ранее информации","Единая теплоснабжающая организация",null,null,null,null,"Форма 4.6",{"$f":"Титульный!E5","v":"Информация о наличии (отсутствии) технической возможности подключения к системе теплоснабжения, а также о регистрации и ходе реализации заявок о подключении к системе теплоснабжения "}]
["Архангельская область",null,2015,null,"март","III квартал",null,"куб.м/час",null,104,"сфера(латиница)\n(TSphere_trans)","VS",null,"Теплоснабжающая организация в ценовой зоне теплоснабжения"]
["Астраханская область",null,2016,null,"апрель","IV квартал",null,null,null,null,"сфера расширено\n(TSphere_full)",null,null,"Теплосетевая организация в ценовой зоне теплоснабжения"]
["Белгородская область",null,2017,null,"май"]
["Брянская область",null,2018,null,"июнь"]
["Владимирская область",null,2019,null,"июль",null,null,null,null,null,"true"]
["Волгоградская область",null,2020,null,"август"]
["Вологодская область",null,null,null,"сентябрь"]
["Воронежская область",null,null,null,"октябрь"]
["г.Байконур",null,null,null,"ноябрь"]
["г. Москва",null,null,null,"декабрь"]
["г.Санкт-Петербург"]
["г.Севастополь"]
["Еврейская автономная область",null,null,null,null,null,"Текущая дата"]
["Забайкальский край",null,"Организация",{"$f":"IF(f_year = \"\",\"\", IF(LEN(f_quart)=0,\"\",IF(f_quart=\"I квартал\", \"01.01.\"&f_year,IF(f_quart=\"II квартал\",\"01.04.\"&f_year,(IF(f_quart=\"III квартал\", \"01.07.\"&f_year,\"01.10.\"&f_year)))) ))","v":"01.07.2018"},{"$f":"IF(f_year = \"\",\"\", IF(LEN(f_quart)=0,\"\",IF(f_quart=\"I квартал\", \"31.03.\"& f_year,IF(f_quart=\"II квартал\",\"30.06.\"& f_year,(IF(f_quart=\"III квартал\", \"30.09.\"& f_year,\"31.12.\"& f_year)))) ))","v":"30.09.2018"},null,"30.10.2018 20:20:48"]
["Ивановская область"]
["Иркутская область",null,null,null,null,null,"Признак изменения данных на листе Доступ к товарам и услугам"]
["Кабардино-Балкарская республика",null,"Виды деятельности",null,null,null,true]
["Калининградская область"]
["Калужская область"]
["Камчатский край"]
["Карачаево-Черкесская республика"]
["Кемеровская область"]
["Кировская область"]
["Костромская область"]
["Краснодарский край"]
["Красноярский край"]
["Курганская область"]
["Курская область"]
["Ленинградская область"]
["Липецкая область"]
["Магаданская область"]
["Московская область"]
["Мурманская область"]
["Ненецкий автономный округ"]
["Нижегородская область"]
["Новгородская область"]
["Новосибирская область"]
["Омская область"]
["Оренбургская область"]
["Орловская область"]
["Пензенская область"]
["Пермский край"]
["Приморский край"]
["Псковская область"]
["Республика Адыгея"]
["Республика Алтай"]
["Республика Башкортостан"]
["Республика Бурятия"]
["Республика Дагестан"]
["Республика Ингушетия"]
["Республика Калмыкия"]
["Республика Карелия"]
["Республика Коми"]
["Республика Крым"]
["Республика Марий Эл"]
["Республика Мордовия"]
["Республика Саха (Якутия)"]
["Республика Северная Осетия-Алания"]
["Республика Татарстан"]
["Республика Тыва"]
["Республика Хакасия"]
["Ростовская область"]
["Рязанская область"]
["Самарская область"]
["Саратовская область"]
["Сахалинская область"]
["Свердловская область"]
["Смоленская область"]
["Ставропольский край"]
["Тамбовская область"]
["Тверская область"]
["Томская область"]
["Тульская область"]
["Тюменская область"]
["Удмуртская республика"]
["Ульяновская область"]
["Хабаровский край"]
["Ханты-Мансийский автономный округ"]
["Челябинская область"]
["Чеченская республика"]
["Чувашская республика"]
["Чукотский автономный округ"]
["Ямало-Ненецкий автономный округ"]
["Ярославская область"]

{"sheet":"modCheckCyan","index":15,"n_rows":10,"n_cols":1,"rows_kept":10,"cut":false,"hidden":true,"merged":[]}
[]
[{"$f":"IF('Сведения об изменении'!$E$13=\"\",1,0)","v":1}]
[{"$f":"IF(Дифференциация!$E$22=\"\",1,0)","v":0}]
[{"$f":"IF(Территории!$E$12=\"\",1,0)","v":0}]
[{"$f":"IF(Дифференциация!$I$22=\"\",1,0)","v":0}]
[{"$f":"IF(Дифференциация!$M$22=\"\",1,0)","v":0}]
[{"$f":"IF('Форма 4.6'!$G$11=\"\",1,0)","v":0}]
[{"$f":"IF('Форма 4.6'!$G$12=\"\",1,0)","v":0}]
[{"$f":"IF('Форма 4.6'!$G$13=\"\",1,0)","v":0}]
[{"$f":"IF('Форма 4.6'!$E$17=\"\",1,0)","v":0}]

{"sheet":"modInfo","index":16,"n_rows":11,"n_cols":2,"rows_kept":11,"cut":false,"hidden":true,"merged":[[4,3,4,10],[0,3,0,10],[1,3,1,10],[2,3,2,10],[3,3,3,10]]}
[null,"Территории"]
[1,"Наименование территории оказания услуг для целей идентификации"]
[2,"Муниципальные районы и муниципальные образования, на территории которых осуществляется оказание услуг"]
[null,"Дифференциация"]
[1,"В случае, если регулируемая организация осуществляет несколько видов деятельности, информация о которых подлежит раскрытию, информация по каждому виду деятельности раскрывается отдельно."]
[2,"Поле заполняется выбором значений из списка. Если значений для выбора нет - убедитесь, что лист \"Территории\" заполнен."]
[3,"Условное наименование централизованной системы коммунальной инфраструктуры для целей идентификации."]
[4,"В случае, если регулируемыми организациями оказываются услуги по нескольким технологически не связанным между собой  централизованным системам коммунальной инфраструктуры и если в отношении указанных централизованных систем устанавливаются различные тарифы, то информация раскрывается отдельно по каждой централизованной системе коммунальной инфраструктуры."]
[null,"Сведения об изменении"]
[1,"Лист заполняется в случае, если на Титульном листе в поле \"Тип отчета\" выбрано значение «Изменения в раскрытой ранее информации»."]
[null,"Нет доступных обновлений, версия отчёта актуальна"]

{"sheet":"et_union_hor","index":17,"n_rows":60,"n_cols":26,"rows_kept":60,"cut":false,"hidden":true,"merged":[[19,7,20,7],[28,3,30,3],[28,4,30,4],[28,5,30,5],[28,6,29,6],[28,7,29,7],[34,7,35,7],[34,8,35,8],[34,9,35,9],[28,8,29,8],[28,9,29,9],[50,3,50,5],[50,6,51,6],[14,2,15,2],[14,3,15,3],[14,4,15,4],[19,2,20,2],[19,5,20,5],[34,6,35,6],[19,6,20,6],[49,3,49,6]]}
[]
[]
["et_Comm"]
[]
[]
[]
["et_List04"]
[]
[]
[]
[]
[]
["et_List09_0"]
[]
[null,"auto",null,1,null,null,0,null,null,"0",null,null,{"$f":"mergeValue(H15)","v":0},null,null,{"$f":"IF(ISERROR(MATCH(MID(Q15,1,250),MID(note_ter,1,250),0)),\"n\",\"y\")","v":"y"},null,{"$f":"K15&\"(\"&L15&\")\"","v":"()"}]
[null,null,null,null,null,null,null,"Добавить МР"]
[]
["et_List09_1"]
[]
[null,"auto",null,null,null,null,0,null,null,"0",null,null,{"$f":"mergeValue(H20)","v":0},null,null,null,null,{"$f":"K20&\"(\"&L20&\")\"","v":"()"}]
[null,null,null,null,null,null,null,null,null,null,"Добавить МО"]
[]
["et_List09_2"]
[]
[null,"auto",null,null,null,null,null,null,null,0,null,null,{"$f":"mergeValue(H25)","v":0},null,null,null,null,{"$f":"K25&\" (\"&L25&\")\"","v":" ()"}]
[]
["et_List07_1"]
[]
[null,null,null,"1",null,"нет",null,1,null,"нет",null,"1",null,null,null,null,null,null,null,null,null,null,null,null,"a",1705000]
[null,null,null,null,null,null,null,null,null,null,null,null,"Добавить централизованную систему коммунальной инфраструктуры"]
[null,null,null,null,null,null,null,null,"Добавить описание территории оказания услуг"]
[]
["et_List07_4"]
[]
[null,null,null,null,null,null,null,1,null,"нет",null,"1",null,null,null,null,null,null,null,null,null,null,null,null,"a",1705000]
[null,null,null,null,null,null,null,null,null,null,null,null,"Добавить централизованную систему коммунальной инфраструктуры"]
[]
["et_List07_5"]
[]
[null,null,null,null,null,null,null,null,null,null,null,"1",null,null,null,null,null,null,null,null,null,null,null,null,"a",1705000]
[]
[]
["et_List03"]
[]
["3","",null,null,null,null,null,null,null,null,null,null,{"$f":"IF(ISERROR(INDEX(kind_of_nameforms,MATCH(E45,kind_of_forms,0),1)),\"\",INDEX(kind_of_nameforms,MATCH(E45,kind_of_forms,0),1))","v":""}]
[]
["et_List02_st","et_List02_ter","et_List02_mr","et_List02_mo"]
[]
[]
[null,null,null,"Форма 1.0.1"]
[null,null,null,"Параметры формы",null,null,"Описание параметров формы"]
[null,null,null,"№ п/п","Наименование параметра","Информация"]
[null,null,null,"1",2,3,4]
[null,null,null,1,"Дата заполнения/внесения изменений",{"$f":"IF(form_up_date=\"\",\"\",form_up_date)","v":"30.10.2018"},"Указывается календарная дата первичного заполнения или внесения изменений в форму в виде «ДД.ММ.ГГГГ»."]
[null,null,null,"2.1","Наименование централизованной системы коммунальной инфраструктуры",null,"Указывается наименование централизованной системы холодного водоснабжения/горячего водоснабжения/водоотведения/теплоснабжения, к которой относится размещаемая информация.\nВ случае наличия нескольких централизованных систем коммунальной инфраструктуры, информация по каждой из них указывается в отдельной строке. "]
[null,null,null,"3.1","Наименование регулируемого вида деятельности",null,"Указывается наименование вида регулируемой деятельности."]
[null,null,null,"4.1","Территория оказания услуги по регулируемому виду деятельности","x"]
[null,null,null,{"$f":"D57&\".1\"","v":"4.1.1"},"Субъект РФ",{"$f":"IF(region_name=\"\",\"\",region_name)","v":"г.Санкт-Петербург"},"Указывается наименование субъекта Российской Федерации"]
[null,null,null,"4.1.1.1","муниципальный район",null,"Указывается наименование муниципального района, на территории которого организация оказывает услуги по регулируемому виду деятельности."]
[null,null,null,"4.1.1.1.1","муниципальное образование",null,"Указывается наименование и код муниципального района, муниципального образования в соответствии с Общероссийским классификатором территорий муниципальных образований (далее - ОКТМО), входящего в муниципальный район, на территории которого организация оказывает услуги по регулируемому виду деятельности.\nВ случае оказания услуг по регулируемому виду деятельности на территории нескольких муниципальных районов (муниципальных образований) данные по каждому их них указываются в отдельной строке."]

{"sheet":"et_union_vert","index":18,"n_rows":0,"n_cols":0,"rows_kept":0,"cut":false,"hidden":true,"merged":[]}

{"sheet":"modList00","index":19,"n_rows":0,"n_cols":0,"rows_kept":0,"cut":false,"hidden":true,"merged":[]}

{"sheet":"modList01","index":20,"n_rows":0,"n_cols":0,"rows_kept":0,"cut":false,"hidden":true,"merged":[]}

{"sheet":"modList02","index":21,"n_rows":0,"n_cols":0,"rows_kept":0,"cut":false,"hidden":true,"merged":[]}

{"sheet":"modList03","index":22,"n_rows":0,"n_cols":0,"rows_kept":0,"cut":false,"hidden":true,"merged":[]}

{"sheet":"modList04","index":23,"n_rows":0,"n_cols":0,"rows_kept":0,"cut":false,"hidden":true,"merged":[]}

{"sheet":"modList07","index":24,"n_rows":0,"n_cols":0,"rows_kept":0,"cut":false,"hidden":true,"merged":[[5,0,6,1],[17,0,18,0]]}

{"sheet":"modList09","index":25,"n_rows":0,"n_cols":0,"rows_kept":0,"cut":false,"hidden":true,"merged":[]}

{"sheet":"modHTTP","index":26,"n_rows":0,"n_cols":0,"rows_kept":0,"cut":false,"hidden":true,"merged":[]}

{"sheet":"modfrmRegion","index":27,"n_rows":0,"n_cols":0,"rows_kept":0,"cut":false,"hidden":true,"merged":[]}

{"sheet":"MR_LIST","index":28,"n_rows":0,"n_cols":0,"rows_kept":0,"cut":false,"hidden":true,"merged":[]}

{"sheet":"REESTR_VT","index":29,"n_rows":0,"n_cols":0,"rows_kept":0,"cut":false,"hidden":true,"merged":[]}

{"sheet":"REESTR_VED","index":30,"n_rows":11,"n_cols":2,"rows_kept":11,"cut":false,"hidden":true,"merged":[]}
["ID_TARIFF_NAME","VED_NAME"]
[4190064,"Производство тепловой энергии. Некомбинированная выработка"]
[4190065,"Производство тепловой энергии. Комбинированная выработка с уст. мощностью производства электрической энергии менее 25 МВт"]
[4190066,"Производство тепловой энергии. Комбинированная выработка с уст. мощностью производства электрической энергии 25 МВт и более"]
[4190067,"Производство. Теплоноситель"]
[4190068,"Передача. Тепловая энергия"]
[4190069,"Передача. Теплоноситель"]
[4190070,"Сбыт. Тепловая энергия"]
[4190071,"Сбыт. Теплоноситель"]
[4190072,"Подключение (технологическое присоединение) к системе теплоснабжения"]
[4190073,"Поддержание резервной тепловой мощности при отсутствии потребления тепловой энергии"]

{"sheet":"modfrmReestrObj","index":31,"n_rows":0,"n_cols":0,"rows_kept":0,"cut":false,"hidden":true,"merged":[]}

{"sheet":"DataOrg","index":32,"n_rows":0,"n_cols":0,"rows_kept":0,"cut":false,"hidden":true,"merged":[]}

{"sheet":"modfrmReestr","index":33,"n_rows":0,"n_cols":0,"rows_kept":0,"cut":false,"hidden":true,"merged":[]}

{"sheet":"modUpdTemplMain","index":34,"n_rows":0,"n_cols":0,"rows_kept":0,"cut":false,"hidden":true,"merged":[]}

{"sheet":"REESTR_ORG","index":35,"n_rows":199,"n_cols":10,"rows_kept":199,"cut":false,"hidden":true,"merged":[]}
["№","REGION_ID","REGION_NAME","RST_ORG_ID","ORG_NAME","INN_NAME","KPP_NAME","ORG_START_DATE","ORG_END_DATE"]
[1,"2614","г.Санкт-Петербург","26641633","АО \"АТЭК\"","7826135558","780501001",null,null,"WARM"]
[2,"2614","г.Санкт-Петербург","26420583","АО \"Аэропорт \"Пулково\"","7810091320","783450001",null,null,"WARM"]
[3,"2614","г.Санкт-Петербург","31203865","АО \"Балтийский завод\"","7830001910","780101001",null,null,"WARM"]
[4,"2614","г.Санкт-Петербург","28155116","АО \"ВНИИРА\"","7801236681","783450001",null,null,"WARM"]
[5,"2614","г.Санкт-Петербург","28266590","АО \"Василеостровская Фабрика\"","7825115990","780101001",null,null,"WARM"]
[6,"2614","г.Санкт-Петербург","26847594","АО \"Водтрансприбор\"","7814010307","781401001",null,null,"WARM"]
[7,"2614","г.Санкт-Петербург","26361120","АО \"ГСР ТЭЦ\"","7817312063","781701001",null,null,"WARM"]
[8,"2614","г.Санкт-Петербург","26560525","АО \"ГУ ЖКХ\"","5116000922","511601001","13-05-2009 00:00:00",null,"WARM"]
[9,"2614","г.Санкт-Петербург","30335229","АО \"ГУ ЖКХ\"","5116000922","770401001",null,null,"WARM"]
[10,"2614","г.Санкт-Петербург","28491236","АО \"Гостиница \"Туррис\"","7830002575","781001001",null,null,"WARM"]
[11,"2614","г.Санкт-Петербург","28450115","АО \"Группа Прайм\"","7825696286","780201001",null,null,"WARM"]
[12,"2614","г.Санкт-Петербург","26641637","АО \"Завод имени А.А.Кулакова\"","7813346618","781301001",null,null,"WARM"]
[13,"2614","г.Санкт-Петербург","27621401","АО \"Завод имени М.И.Калинина\"","7801566094","780101001",null,null,"WARM"]
[14,"2614","г.Санкт-Петербург","26361128","АО \"Интер РАО - Электрогенерация\" (филиал \"Северо-Западная ТЭЦ\")","7704784450","781443001",null,null,"WARM"]
[15,"2614","г.Санкт-Петербург","28812728","АО \"КИНОСТУДИЯ \"ЛЕНФИЛЬМ\"","7813200545","781301001",null,null,"WARM"]
[16,"2614","г.Санкт-Петербург","26361104","АО \"КировТЭК\"","7805060502","780501001",null,null,"WARM"]
[17,"2614","г.Санкт-Петербург","27827361","АО \"Кожа\"","7801133686","780101001",null,null,"WARM"]
[18,"2614","г.Санкт-Петербург","26361095","АО \"Компонент\"","7804046015","780401001",null,null,"WARM"]
[19,"2614","г.Санкт-Петербург","28505234","АО \"Кронштадтский морской завод\"","7843003128","784301001",null,null,"WARM"]
[20,"2614","г.Санкт-Петербург","26361094","АО \"ЛОМО\"","7804002321","783450001",null,null,"WARM"]
[21,"2614","г.Санкт-Петербург","26614924","АО \"ЛСР. Железобетон-СЗ\"","7830000578","470501001",null,null,"WARM"]
[22,"2614","г.Санкт-Петербург","27824854","АО \"Ленпромгаз\"","7841333120","784101001",null,null,"WARM"]
[23,"2614","г.Санкт-Петербург","26361102","АО \"Морской порт Санкт-Петербург\"","7805025346","785050001",null,null,"WARM"]
[24,"2614","г.Санкт-Петербург","30983227","АО \"НИИ \"Вектор\"","7813491943","783450001",null,null,"WARM"]
[25,"2614","г.Санкт-Петербург","28796102","АО \"НИИ командных приборов\"","7805654288","780501001",null,null,"WARM"]
[26,"2614","г.Санкт-Петербург","27628470","АО \"НПП \"Краснознамёнец\"","7806469104","783450001","19-01-2012 00:00:00",null,"WARM"]
[27,"2614","г.Санкт-Петербург","27551052","АО \"Невская мануфактура\"","7811056991","781101001",null,null,"WARM"]
[28,"2614","г.Санкт-Петербург","31206594","АО \"Особая экономическая зона \"Санкт-Петербург\"","7819036901","781901001",null,null,"WARM"]
[29,"2614","г.Санкт-Петербург","27307314","АО \"Особые Экономические Зоны\"","7703591134","781943001",null,null,"WARM"]
[30,"2614","г.Санкт-Петербург","28155081","АО \"Первый контейнерный терминал\"","7805113497","997650001",null,null,"WARM"]
[31,"2614","г.Санкт-Петербург","26828034","АО \"РЭУ\" филиал \"Санкт-Петербургский\"","7714783092","783943001",null,null,"WARM"]
[32,"2614","г.Санкт-Петербург","28042569","АО \"Редэс Лтд\"","7801059070","780101001",null,null,"WARM"]
[33,"2614","г.Санкт-Петербург","28143840","АО \"Рыбокомбинат\"","7804036909","780401001",null,null,"WARM"]
[34,"2614","г.Санкт-Петербург","26590970","АО \"Совавто-С.Петербург\"","7810216498","781001001",null,null,"WARM"]
[35,"2614","г.Санкт-Петербург","26555650","АО \"Теплосеть Санкт-Петербурга\"","7810577007","781001001",null,null,"WARM"]
[36,"2614","г.Санкт-Петербург","28152736","АО \"ЦКБ МТ \"Рубин\"","7838418751","997850001",null,null,"WARM"]
[37,"2614","г.Санкт-Петербург","26533887","АО \"Юго-Западная ТЭЦ\"","7813323258","780501001",null,null,"WARM"]
[38,"2614","г.Санкт-Петербург","28042447","АО ВО \"Электроаппарат\"","7801032688","780101001",null,null,"WARM"]
[39,"2614","г.Санкт-Петербург","30427522","АО ГУ ЖКХ ОП \"Санкт-Петербургское\"","5116000922","784245001","12-10-2015 00:00:00",null,"WARM"]
[40,"2614","г.Санкт-Петербург","28855708","ГАО РАН","7810207327","781001001",null,null,"WARM"]
[41,"2614","г.Санкт-Петербург","26422494","ГУП \"Водоканал Санкт-Петербурга\"","7830000426","783450001",null,null,"WARM"]
[42,"2614","г.Санкт-Петербург","26361126","ГУП \"ТЭК СПб\"","7830001028","783450001",null,null,"WARM"]
[43,"2614","г.Санкт-Петербург","28274316","ЗАО \"Асфальтобетонный Завод \"Магистраль\"","7811038093","781101001",null,null,"WARM"]
[44,"2614","г.Санкт-Петербург","28867621","ЗАО \"ЗМК-ИК\"","7811500159","781101001",null,null,"WARM"]
[45,"2614","г.Санкт-Петербург","26361096","ЗАО \"Завод Красная Заря. Системы цифровой связи\"","7804080383","780201001",null,null,"WARM"]
[46,"2614","г.Санкт-Петербург","28042409","ЗАО \"Завод металлоконструкций\"","7811001706","781101001",null,null,"WARM"]
[47,"2614","г.Санкт-Петербург","28042511","ЗАО \"МЕЗОНТЭК\"","7802154287","780201001",null,null,"WARM"]
[48,"2614","г.Санкт-Петербург","28794896","ЗАО \"Невский завод\"","7806369727","781101001",null,null,"WARM"]
[49,"2614","г.Санкт-Петербург","27812407","ЗАО \"ПЕТЕРБУРГЗЕРНОПРОДУКТ\"","7810480407","781101001",null,null,"WARM"]
[50,"2614","г.Санкт-Петербург","28493183","ЗАО \"Пансионат \"Балтиец\"","7805093610","784301001",null,null,"WARM"]
[51,"2614","г.Санкт-Петербург","26422368","ЗАО \"Пансионат \"Буревестник\"","7827012742","784301001",null,null,"WARM"]
[52,"2614","г.Санкт-Петербург","28042468","ЗАО \"Петроспирт\"","7805002518","780501001",null,null,"WARM"]
[53,"2614","г.Санкт-Петербург","26597721","ЗАО \"Пластполимер-Т\"","7806419142","780601001",null,null,"WARM"]
[54,"2614","г.Санкт-Петербург","28072594","ЗАО \"РУСТ-95\"","7728120384","770501001",null,null,"WARM"]
[55,"2614","г.Санкт-Петербург","26533889","ЗАО \"Ресурс-Экономия\"","7820039657","782001001",null,null,"WARM"]
[56,"2614","г.Санкт-Петербург","27997575","ЗАО \"СВ-Сити\"","7816206305","781601001",null,null,"WARM"]
[57,"2614","г.Санкт-Петербург","28135540","ЗАО \"Сокол\"","7810014646","781001001",null,null,"WARM"]
[58,"2614","г.Санкт-Петербург","26361116","ЗАО \"Тепломагистраль\"","7814302758","784101001",null,null,"WARM"]
[59,"2614","г.Санкт-Петербург","28042547","ЗАО \"Трест Ленмостострой\"","7830002617","780101001",null,null,"WARM"]
[60,"2614","г.Санкт-Петербург","28943782","ЗАО \"ЭКСИ-Банк\"","7831000940","783501001",null,null,"WARM"]
[61,"2614","г.Санкт-Петербург","26361098","ЗАО \"ЭЭУК \"Авангард-Энерго\"","7804068178","780401001",null,null,"WARM"]
[62,"2614","г.Санкт-Петербург","26555694","ЗАО \"Энергетическая компания \"Теплогарант\"","7814143498","783601001",null,null,"WARM"]
[63,"2614","г.Санкт-Петербург","28458587","ИХС РАН","7801019101","780101001",null,null,"WARM"]
[64,"2614","г.Санкт-Петербург","28284366","МРФ \"Северо-Запад\" ПАО \"Ростелеком\"","7707049388","784243001",null,null,"WARM"]
[65,"2614","г.Санкт-Петербург","28816484","НАО \"СВЕЗА Усть-Ижора\"","7817015769","783450001",null,null,"WARM"]
[66,"2614","г.Санкт-Петербург","27114822","НАО \"Энергетический Альянс\"","7843300280","784301001",null,null,"WARM"]
[67,"2614","г.Санкт-Петербург","28152625","ОАО \"18 арсенал ВМФ\"","7843311429","784301001",null,null,"WARM"]
[68,"2614","г.Санкт-Петербург","28453706","ОАО \"20 АРЗ\"","7820309254","783450001",null,null,"WARM"]
[69,"2614","г.Санкт-Петербург","28453728","ОАО \"61 БТРЗ\"","7819310752","781901001",null,null,"WARM"]
[70,"2614","г.Санкт-Петербург","26422350","ОАО \"Аккумуляторная компания \"Ригель\"","7813054118","781301001",null,null,"WARM"]
[71,"2614","г.Санкт-Петербург","26422149","ОАО \"БИЗНЕС-ЦЕНТР \"АКВИЛОН\"","7802067080","780201001",null,null,"WARM"]
[72,"2614","г.Санкт-Петербург","27946694","ОАО \"Бавария\"","7813045071","781301001",null,null,"WARM"]
[73,"2614","г.Санкт-Петербург","28091987","ОАО \"ГОИ им. С. И. Вавилова\"","7801591397","780101001",null,null,"WARM"]
[74,"2614","г.Санкт-Петербург","26361118","ОАО \"Головной завод\"","7816222000","781601001",null,null,"WARM"]
[75,"2614","г.Санкт-Петербург","26647768","ОАО \"ДОЗ-2\"","7830000271","780601001",null,null,"WARM"]
[76,"2614","г.Санкт-Петербург","27997553","ОАО \"ДЦ \"Кантемировский\"","7813425073","781301001",null,null,"WARM"]
[77,"2614","г.Санкт-Петербург","26422100","ОАО \"Завод \"Реконд\"","7802005951","780201001",null,null,"WARM"]
[78,"2614","г.Санкт-Петербург","28544720","ОАО \"Завод ЭЛЕКТРОПУЛЬТ\"","7806008569","783450001",null,null,"WARM"]
[79,"2614","г.Санкт-Петербург","27956327","ОАО \"Завод слоистых пластиков\"","7806005590","780601001",null,null,"WARM"]
[80,"2614","г.Санкт-Петербург","26641618","ОАО \"Завод станков-автоматов\"","7813047424","781301001",null,null,"WARM"]
[81,"2614","г.Санкт-Петербург","26422098","ОАО \"Зеркальный завод\"","7810301471","781001001",null,null,"WARM"]
[82,"2614","г.Санкт-Петербург","27665245","ОАО \"ИНТЕР РАО ЕЭС\" (филиал \"Северо-Западная ТЭЦ\")","7830002656","783450001",null,null,"WARM"]
[83,"2614","г.Санкт-Петербург","27997479","ОАО \"Иван Федоров\"","7816067965","780101001",null,null,"WARM"]
[84,"2614","г.Санкт-Петербург","26361091","ОАО \"Компрессор\"","7802071707","783450001",null,null,"WARM"]
[85,"2614","г.Санкт-Петербург","28146440","ОАО \"Конструкторское бюро специального машиностроения\"","7802205799","780201001",null,null,"WARM"]
[86,"2614","г.Санкт-Петербург","26647775","ОАО \"Концерн \"Гранит-Электрон\"","7842335610","784201001",null,null,"WARM"]
[87,"2614","г.Санкт-Петербург","28042181","ОАО \"ЛЕНПОЛИГРАФМАШ\"","7813045025","783450001",null,null,"WARM"]
[88,"2614","г.Санкт-Петербург","28453717","ОАО \"ЛКХП Кирова\"","7830002303","783450001",null,null,"WARM"]
[89,"2614","г.Санкт-Петербург","26361107","ОАО \"Ленинградский электромеханический завод\"","7807013138","780701001",null,null,"WARM"]
[90,"2614","г.Санкт-Петербург","28453744","ОАО \"МЗ \"Арсенал\"","7804040302","780401001",null,null,"WARM"]
[91,"2614","г.Санкт-Петербург","27968093","ОАО \"Морской завод Алмаз\"","7728156800","780101001",null,null,"WARM"]
[92,"2614","г.Санкт-Петербург","26361122","ОАО \"НПО ЦКТИ\"","7825660956","784201001",null,null,"WARM"]
[93,"2614","г.Санкт-Петербург","26422145","ОАО \"Научно-производственный комплекс \"Северная заря\"","7802064795","783450001",null,null,"WARM"]
[94,"2614","г.Санкт-Петербург","28152707","ОАО \"Приморский парк Победы\"","7813464548","781301001",null,null,"WARM"]
[95,"2614","г.Санкт-Петербург","26422310","ОАО \"Прядильно-ниточный комбинат \"Красная нить\"","7802052172","780201001",null,null,"WARM"]
[96,"2614","г.Санкт-Петербург","26814895","ОАО \"РЖД\" (Октябрьская дирекция по тепловодоснабжению - СП Центральной дирекции по тепловодоснабжению - филиала ОАО \"РЖД\")","7708503727","780445015","01-04-2011 00:00:00",null,"WARM"]
[97,"2614","г.Санкт-Петербург","28255000","ОАО \"СПб Завод ТЭМП\"","7805017514","780501001",null,null,"WARM"]
[98,"2614","г.Санкт-Петербург","26515996","ОАО \"Санкт-Петербургское морское бюро машиностроения \"Малахит\"","7810537540","783450001","18-11-2008 00:00:00",null,"WARM"]
[99,"2614","г.Санкт-Петербург","26422130","ОАО \"Северная мануфактура\"","7801020019","780101001",null,null,"WARM"]
[100,"2614","г.Санкт-Петербург","28155094","ОАО \"Стройметалконструкция\"","7830000680","780601001",null,null,"WARM"]
[101,"2614","г.Санкт-Петербург","28091963","ОАО \"Телерадиокомпания \"Петербург\"","7825404448","783450001",null,null,"WARM"]
[102,"2614","г.Санкт-Петербург","27961378","ОАО \"Фирма Медполимер\"","7806008745","780601001",null,null,"WARM"]
[103,"2614","г.Санкт-Петербург","28145322","ОАО \"Штурманские приборы\"","7806016697","780601001",null,null,"WARM"]
[104,"2614","г.Санкт-Петербург","28427914","ООО \"АЛЬТЕРНАТИВА\"","7804509545","780401001",null,null,"WARM"]
[105,"2614","г.Санкт-Петербург","26421969","ООО \"Адамант\"","7826101774","783801001",null,null,"WARM"]
[106,"2614","г.Санкт-Петербург","28942335","ООО \"Аквастим\"","7810896892","781001001",null,null,"WARM"]
[107,"2614","г.Санкт-Петербург","26361105","ООО \"Акватерм\"","7805185251","781101001",null,null,"WARM"]
[108,"2614","г.Санкт-Петербург","28427903","ООО \"Александро-Невская мануфактура\"","7811307571","781101001",null,null,"WARM"]
[109,"2614","г.Санкт-Петербург","27819284","ООО \"Атлантик\"","7826135075","781301001",null,null,"WARM"]
[110,"2614","г.Санкт-Петербург","28454938","ООО \"Бавария\"","7813554914","781301001",null,null,"WARM"]
[111,"2614","г.Санкт-Петербург","28152680","ООО \"Балтийский завод - Судостроение\"","7801560631","780101001",null,"31-08-2018 00:00:00","WARM"]
[112,"2614","г.Санкт-Петербург","26555079","ООО \"Воздушные ворота северной столицы\"","7703590927","785050001",null,null,"WARM"]
[113,"2614","г.Санкт-Петербург","28042558","ООО \"Возрождение\"","7840332364","784001001",null,null,"WARM"]
[114,"2614","г.Санкт-Петербург","30925410","ООО \"ГАЗКОМПЛЕКТ\"","7802528743","781401001",null,null,"WARM"]
[115,"2614","г.Санкт-Петербург","26361113","ООО \"ГЕНЕРИРУЮЩАЯ КОМПАНИЯ \"ОБУХОВОЭНЕРГО\"","7811618471","781101001",null,null,"WARM"]
[116,"2614","г.Санкт-Петербург","27953647","ООО \"ГРАДСТРОЙ\"","4703088415","781101001",null,null,"WARM"]
[117,"2614","г.Санкт-Петербург","26424110","ООО \"Газпром трансгаз Санкт-Петербург\"","7805018099","781001001",null,null,"WARM"]
[118,"2614","г.Санкт-Петербург","26838677","ООО \"Гофра-2001\"","7820304249","782001001",null,null,"WARM"]
[119,"2614","г.Санкт-Петербург","28448967","ООО \"Зеленый дом\"","7804099257","784301001",null,null,"WARM"]
[120,"2614","г.Санкт-Петербург","26361092","ООО \"ИНТЕРМ\"","7802127477","780201001",null,null,"WARM"]
[121,"2614","г.Санкт-Петербург","28042497","ООО \"ИнвестКонсалт\"","7717662353","781101001",null,null,"WARM"]
[122,"2614","г.Санкт-Петербург","28134896","ООО \"Инженерная компания\"","7806150886","780601001",null,null,"WARM"]
[123,"2614","г.Санкт-Петербург","28122490","ООО \"Институт Гипроникель\"","7804349796","780401001",null,null,"WARM"]
[124,"2614","г.Санкт-Петербург","26421911","ООО \"КОСМ \"Энерго\"","7805065476","780501001",null,null,"WARM"]
[125,"2614","г.Санкт-Петербург","26361093","ООО \"Квартальная котельная\"","7802310698","780201001",null,null,"WARM"]
[126,"2614","г.Санкт-Петербург","28041958","ООО \"ЛЕСПРОМ СПб\"","7817330143","781701001",null,null,"WARM"]
[127,"2614","г.Санкт-Петербург","28965696","ООО \"ЛПМ Скиф\"","7813142702","781301001",null,null,"WARM"]
[128,"2614","г.Санкт-Петербург","28942326","ООО \"МЕЗОНТЭК\"","7802857988","780201001",null,null,"WARM"]
[129,"2614","г.Санкт-Петербург","27546308","ООО \"МегаСтрой\"","7801185204","784101001",null,null,"WARM"]
[130,"2614","г.Санкт-Петербург","28152725","ООО \"Объединенные Пивоварни Хейникен\"","7802118578","997350001",null,null,"WARM"]
[131,"2614","г.Санкт-Петербург","28940429","ООО \"ПРОМ ИМПУЛЬС\"","7806520632","780601001",null,null,"WARM"]
[132,"2614","г.Санкт-Петербург","28266783","ООО \"ПТК-Терминал\"","7806055343","783450001",null,null,"WARM"]
[133,"2614","г.Санкт-Петербург","26422005","ООО \"Петербургская торгово-промышленная компания\"","7825487243","784101001",null,null,"WARM"]
[134,"2614","г.Санкт-Петербург","26422017","ООО \"Петербургтеплоэнерго\"","7838024362","783450001",null,null,"WARM"]
[135,"2614","г.Санкт-Петербург","27880391","ООО \"Питерэнерго\"","7811394126","781101001",null,null,"WARM"]
[136,"2614","г.Санкт-Петербург","26421926","ООО \"Проектно-производственная компания \"Регион\"","7802431406","780201001",null,null,"WARM"]
[137,"2614","г.Санкт-Петербург","26322164","ООО \"Производственное объединение \"Пекар\"","7801374265","781601001",null,null,"WARM"]
[138,"2614","г.Санкт-Петербург","28827606","ООО \"Прометей\"","7811562684","781101001",null,null,"WARM"]
[139,"2614","г.Санкт-Петербург","26361108","ООО \"Пулковская ТЭЦ\"","7810095885","781001001",null,null,"WARM"]
[140,"2614","г.Санкт-Петербург","26647770","ООО \"Рассвет\"","7810191726","781001001",null,null,"WARM"]
[141,"2614","г.Санкт-Петербург","26597829","ООО \"САНЛИТ-Т\"","7817044495","781701001",null,null,"WARM"]
[142,"2614","г.Санкт-Петербург","28042486","ООО \"СЗУК\"","7810509293","781001001",null,null,"WARM"]
[143,"2614","г.Санкт-Петербург","28155105","ООО \"СК Северная Венеция\"","7802437912","780201001",null,null,"WARM"]
[144,"2614","г.Санкт-Петербург","26422761","ООО \"Самсон\"","7810015329","781001001",null,null,"WARM"]
[145,"2614","г.Санкт-Петербург","28255011","ООО \"Светлана-Эстейт\"","7802385950","780201001",null,null,"WARM"]
[146,"2614","г.Санкт-Петербург","27831333","ООО \"Системы Безопасности Северо-Запад\"","7802338277","780201001",null,null,"WARM"]
[147,"2614","г.Санкт-Петербург","27546295","ООО \"Софийский бульвар\"","7813479657","781301001",null,null,"WARM"]
[148,"2614","г.Санкт-Петербург","28509704","ООО \"Степан Разин Девелопмент\"","7805614870","783901001",null,null,"WARM"]
[149,"2614","г.Санкт-Петербург","26361121","ООО \"ТВК Лесное\"","7820029472","782001001",null,null,"WARM"]
[150,"2614","г.Санкт-Петербург","28511826","ООО \"ТЕПЛОЭНЕРГО\"","7802853013","780101001",null,null,"WARM"]
[151,"2614","г.Санкт-Петербург","29647643","ООО \"ТСК\"","7842033592","784201001",null,null,"WARM"]
[152,"2614","г.Санкт-Петербург","28113372","ООО \"ТЭК объединения \"Скороход\"","7810270209","781001001",null,null,"WARM"]
[153,"2614","г.Санкт-Петербург","26421986","ООО \"Таймс\"","7814122120","781401001",null,null,"WARM"]
[154,"2614","г.Санкт-Петербург","28422808","ООО \"ТеплоЭнергоВент\"","7806438628","780601001",null,null,"WARM"]
[155,"2614","г.Санкт-Петербург","26361135","ООО \"Теплодар\"","7841314985","784101001",null,null,"WARM"]
[156,"2614","г.Санкт-Петербург","27971244","ООО \"Теплосервис\"","7839357460","783901001",null,null,"WARM"]
[157,"2614","г.Санкт-Петербург","28151979","ООО \"Теплоснабжающая компания 282\"","7805519673","783801001",null,null,"WARM"]
[158,"2614","г.Санкт-Петербург","28798987","ООО \"Технопарк №1\"","7841014910","784101001",null,null,"WARM"]
[159,"2614","г.Санкт-Петербург","28001891","ООО \"Троя\"","7820034338","782001001",null,null,"WARM"]
[160,"2614","г.Санкт-Петербург","26361115","ООО \"Фирма \"РОСС\"","7813114617","781301001",null,null,"WARM"]
[161,"2614","г.Санкт-Петербург","28042530","ООО \"Хлебтранс СПб\"","7810467163","783101001",null,null,"WARM"]
[162,"2614","г.Санкт-Петербург","27988538","ООО \"ЦМТ и НТС\"","7813109141","781301001",null,null,"WARM"]
[163,"2614","г.Санкт-Петербург","27848302","ООО \"ЭКОН\"","7804176134","780401001",null,null,"WARM"]
[164,"2614","г.Санкт-Петербург","26769190","ООО \"ЭНЕРГИЯ\"","7826087336","783901001",null,null,"WARM"]
[165,"2614","г.Санкт-Петербург","28134965","ООО \"ЭНЕРГЭС\"","7801089980","780101001",null,null,"WARM"]
[166,"2614","г.Санкт-Петербург","26422092","ООО \"ЭРМАС\"","7806007029","780601001",null,null,"WARM"]
[167,"2614","г.Санкт-Петербург","26361114","ООО \"Эксплуатационная компания \"Арго-Сервис\"","7811375691","781101001",null,null,"WARM"]
[168,"2614","г.Санкт-Петербург","27976484","ООО \"Энергетические системы\"","7806302458","780601001",null,null,"WARM"]
[169,"2614","г.Санкт-Петербург","28979613","ООО \"ЭнергоИнвест\"","7841378040","780201001",null,null,"WARM"]
[170,"2614","г.Санкт-Петербург","30953255","ООО \"ЭнергоИнвест\"","7841378040","781701001",null,null,"WARM"]
[171,"2614","г.Санкт-Петербург","26421941","ООО \"ЭнергоРесурс 2005\"","7805387057","780501001",null,null,"WARM"]
[172,"2614","г.Санкт-Петербург","27517472","ООО \"Энергогазмонтаж\"","7806119950","781301001",null,null,"WARM"]
[173,"2614","г.Санкт-Петербург","26361090","ООО \"Энергокомпания \"Теплопоставка\"","7801379947","780101001",null,null,"WARM"]
[174,"2614","г.Санкт-Петербург","26361112","ООО \"Энергопромсервис\"","7811141414","781101001",null,null,"WARM"]
[175,"2614","г.Санкт-Петербург","26361123","ООО \"Энергосервис\"","7826140438","783901001",null,null,"WARM"]
[176,"2614","г.Санкт-Петербург","28423270","ООО \"ЮИТ Сервис\"","7814422759","781401001",null,null,"WARM"]
[177,"2614","г.Санкт-Петербург","26578046","ООО \"Юнит\"","7207009725","783901001",null,null,"WARM"]
[178,"2614","г.Санкт-Петербург","28496542","ООО УК \"Лэмз\"","7703792360","780701001",null,null,"WARM"]
[179,"2614","г.Санкт-Петербург","26647708","ПАО \"Пролетарский завод\"","7811039386","997850001",null,null,"WARM"]
[180,"2614","г.Санкт-Петербург","26361106","ПАО \"Русские самоцветы\"","7806007100","783450001",null,null,"WARM"]
[181,"2614","г.Санкт-Петербург","27054332","ПАО \"ТГК-1\"","7841312071","780501001",null,null,"WARM"]
[182,"2614","г.Санкт-Петербург","26539356","ПАО \"ТГК-1\" филиал \"Невский\"","7841312071","780102001",null,null,"WARM"]
[183,"2614","г.Санкт-Петербург","26422151","ПАО \"Техприбор\"","7810237177","781001001",null,null,"WARM"]
[184,"2614","г.Санкт-Петербург","28960049","ПАО СЗ \"Северная верфь\"","7805034277","997850001",null,null,"WARM"]
[185,"2614","г.Санкт-Петербург","26516049","С/х производственный кооператив \"Племзавод \"Детскосельский\"","7820027796","782001001",null,null,"WARM"]
[186,"2614","г.Санкт-Петербург","28191592","СПб ГБУЗ \"Городская больница им. Н.А.Семашко\"","7820013553","782001001",null,null,"WARM"]
[187,"2614","г.Санкт-Петербург","26322166","СПб ГУП \"Петербургский метрополитен\"","7830000970","783450001",null,null,"WARM"]
[188,"2614","г.Санкт-Петербург","27995413","Университет ИТМО","7813045547","781301001",null,null,"WARM"]
[189,"2614","г.Санкт-Петербург","28454949","ФГБНУ ВИР","7812029408","783801001",null,null,"WARM"]
[190,"2614","г.Санкт-Петербург","26361089","ФГБОУ ВО \"ГУМРФ имени адмирала С.О. Макарова\"","7805029012","780501001",null,null,"WARM"]
[191,"2614","г.Санкт-Петербург","26422396","ФГБОУ ВО ПГУПС","7812009592","783801001",null,null,"WARM"]
[192,"2614","г.Санкт-Петербург","28934747","ФГБОУ ВПО \"СПбГАВМ\"","7810232965","781001001",null,null,"WARM"]
[193,"2614","г.Санкт-Петербург","26491915","ФГБОУ ВПО \"СПбГПУ\"","7804040077","780401001",null,null,"WARM"]
[194,"2614","г.Санкт-Петербург","30903763","ФГБУ \"ЦЖКУ\" МИНОБОРОНЫ РОССИИ","7729314745","770101001",null,null,"WARM"]
[195,"2614","г.Санкт-Петербург","28436138","ФГБУН Институт прикладной астрономии Российской академии наук","7813045434","781301001",null,null,"WARM"]
[196,"2614","г.Санкт-Петербург","28485475","ФГКУ \"Невский СЦ МЧС России\"","7817002417","781701001",null,null,"WARM"]
[197,"2614","г.Санкт-Петербург","28508026","ФКОУ ДПО Санкт-Петербургский ИПКР ФСИН России","7820016787","782001001",null,null,"WARM"]
[198,"2614","г.Санкт-Петербург","30941480","Филиал ФГБУ \"ЦЖКУ\" Минобороны России по ЗВО","7729314745","784243001",null,null,"WARM"]

{"sheet":"modClassifierValidate","index":36,"n_rows":0,"n_cols":0,"rows_kept":0,"cut":false,"hidden":true,"merged":[]}

{"sheet":"modHyp","index":37,"n_rows":0,"n_cols":0,"rows_kept":0,"cut":false,"hidden":true,"merged":[]}

{"sheet":"modfrmDateChoose","index":38,"n_rows":0,"n_cols":0,"rows_kept":0,"cut":false,"hidden":true,"merged":[]}

{"sheet":"modComm","index":39,"n_rows":0,"n_cols":0,"rows_kept":0,"cut":false,"hidden":true,"merged":[]}

{"sheet":"modThisWorkbook","index":40,"n_rows":0,"n_cols":0,"rows_kept":0,"cut":false,"hidden":true,"merged":[]}

{"sheet":"REESTR_MO","index":41,"n_rows":113,"n_cols":4,"rows_kept":113,"cut":false,"hidden":true,"merged":[]}
["№","МР","МО","МО_ОКТМО"]
[1,"город Санкт-Петербург","город Зеленогорск","40361000"]
[2,"город Санкт-Петербург","город Колпино","40342000"]
[3,"город Санкт-Петербург","город Красное Село","40353000"]
[4,"город Санкт-Петербург","город Кронштадт","40360000"]
[5,"город Санкт-Петербург","город Ломоносов","40372000"]
[6,"город Санкт-Петербург","город Павловск","40387000"]
[7,"город Санкт-Петербург","город Петергоф","40395000"]
[8,"город Санкт-Петербург","город Пушкин","40397000"]
[9,"город Санкт-Петербург","город Санкт-Петербург","40000000"]
[10,"город Санкт-Петербург","город Сестрорецк","40362000"]
[11,"город Санкт-Петербург","муниципальный округ № 15","40317000"]
[12,"город Санкт-Петербург","муниципальный округ № 21","40331000"]
[13,"город Санкт-Петербург","муниципальный округ № 54","40383000"]
[14,"город Санкт-Петербург","муниципальный округ № 65","40322000"]
[15,"город Санкт-Петербург","муниципальный округ № 7","40307000"]
[16,"город Санкт-Петербург","муниципальный округ № 72","40903000"]
[17,"город Санкт-Петербург","муниципальный округ № 75","40906000"]
[18,"город Санкт-Петербург","муниципальный округ № 78","40909000"]
[19,"город Санкт-Петербург","муниципальный округ Автово","40338000"]
[20,"город Санкт-Петербург","муниципальный округ Адмиралтейский округ","40303000"]
[21,"город Санкт-Петербург","муниципальный округ Академическое","40329000"]
[22,"город Санкт-Петербург","муниципальный округ Аптекарский остров","40392000"]
[23,"город Санкт-Петербург","муниципальный округ Балканский","40907000"]
[24,"город Санкт-Петербург","муниципальный округ Большая Охта","40349000"]
[25,"город Санкт-Петербург","муниципальный округ Васильевский","40308000"]
[26,"город Санкт-Петербург","муниципальный округ Введенский","40389000"]
[27,"город Санкт-Петербург","муниципальный округ Владимирский округ","40913000"]
[28,"город Санкт-Петербург","муниципальный округ Волковское","40902000"]
[29,"город Санкт-Петербург","муниципальный округ Гавань","40309000"]
[30,"город Санкт-Петербург","муниципальный округ Гагаринское","40374000"]
[31,"город Санкт-Петербург","муниципальный округ Георгиевский","40905000"]
[32,"город Санкт-Петербург","муниципальный округ Горелово","40359000"]
[33,"город Санкт-Петербург","муниципальный округ Гражданка","40328000"]
[34,"город Санкт-Петербург","муниципальный округ Дачное","40337000"]
[35,"город Санкт-Петербург","муниципальный округ Дворцовый округ","40908000"]
[36,"город Санкт-Петербург","муниципальный округ Екатерингофский","40306000"]
[37,"город Санкт-Петербург","муниципальный округ Звездное","40377000"]
[38,"город Санкт-Петербург","муниципальный округ Ивановский","40379000"]
[39,"город Санкт-Петербург","муниципальный округ Измайловское","40305000"]
[40,"город Санкт-Петербург","муниципальный округ Княжево","40335000"]
[41,"город Санкт-Петербург","муниципальный округ Коломна","40301000"]
[42,"город Санкт-Петербург","муниципальный округ Коломяги","40327000"]
[43,"город Санкт-Петербург","муниципальный округ Комендантский аэродром","40324000"]
[44,"город Санкт-Петербург","муниципальный округ Константиновское","40358000"]
[45,"город Санкт-Петербург","муниципальный округ Красненькая речка","40340000"]
[46,"город Санкт-Петербург","муниципальный округ Кронверкское","40390000"]
[47,"город Санкт-Петербург","муниципальный округ Купчино","40904000"]
[48,"город Санкт-Петербург","муниципальный округ Лахта-Ольгино","40321000"]
[49,"город Санкт-Петербург","муниципальный округ Лиговка-Ямская","40912000"]
[50,"город Санкт-Петербург","муниципальный округ Литейный округ","40910000"]
[51,"город Санкт-Петербург","муниципальный округ Малая Охта","40350000"]
[52,"город Санкт-Петербург","муниципальный округ Морские ворота","40341000"]
[53,"город Санкт-Петербург","муниципальный округ Морской","40310000"]
[54,"город Санкт-Петербург","муниципальный округ Московская застава","40373000"]
[55,"город Санкт-Петербург","муниципальный округ Нарвский округ","40339000"]
[56,"город Санкт-Петербург","муниципальный округ Народный","40382000"]
[57,"город Санкт-Петербург","муниципальный округ Невская застава","40378000"]
[58,"город Санкт-Петербург","муниципальный округ Невский округ","40384000"]
[59,"город Санкт-Петербург","муниципальный округ Новоизмайловское","40375000"]
[60,"город Санкт-Петербург","муниципальный округ Обуховский","40380000"]
[61,"город Санкт-Петербург","муниципальный округ Озеро Долгое","40325000"]
[62,"город Санкт-Петербург","муниципальный округ Оккервиль","40385000"]
[63,"город Санкт-Петербург","муниципальный округ Остров Декабристов","40311000"]
[64,"город Санкт-Петербург","муниципальный округ Пискаревка","40332000"]
[65,"город Санкт-Петербург","муниципальный округ Полюстрово","40348000"]
[66,"город Санкт-Петербург","муниципальный округ Пороховые","40351000"]
[67,"город Санкт-Петербург","муниципальный округ Посадский","40391000"]
[68,"город Санкт-Петербург","муниципальный округ Правобережный","40386000"]
[69,"город Санкт-Петербург","муниципальный округ Прометей","40334000"]
[70,"город Санкт-Петербург","муниципальный округ Пулковский меридиан","40376000"]
[71,"город Санкт-Петербург","муниципальный округ Ржевка","40352000"]
[72,"город Санкт-Петербург","муниципальный округ Рыбацкое","40381000"]
[73,"город Санкт-Петербург","муниципальный округ Сампсониевское","40314000"]
[74,"город Санкт-Петербург","муниципальный округ Светлановское","40315000"]
[75,"город Санкт-Петербург","муниципальный округ Северный","40333000"]
[76,"город Санкт-Петербург","муниципальный округ Семеновский","40304000"]
[77,"город Санкт-Петербург","муниципальный округ Сенной округ","40302000"]
[78,"город Санкт-Петербург","муниципальный округ Сергиевское","40318000"]
[79,"город Санкт-Петербург","муниципальный округ Смольнинское","40911000"]
[80,"город Санкт-Петербург","муниципальный округ Сосновая поляна","40356000"]
[81,"город Санкт-Петербург","муниципальный округ Сосновское","40316000"]
[82,"город Санкт-Петербург","муниципальный округ Ульянка","40336000"]
[83,"город Санкт-Петербург","муниципальный округ Урицк","40357000"]
[84,"город Санкт-Петербург","муниципальный округ Финляндский округ","40330000"]
[85,"город Санкт-Петербург","муниципальный округ Черная речка","40323000"]
[86,"город Санкт-Петербург","муниципальный округ Чкаловское","40394000"]
[87,"город Санкт-Петербург","муниципальный округ Шувалово-Озерки","40319000"]
[88,"город Санкт-Петербург","муниципальный округ Юго-Запад","40354000"]
[89,"город Санкт-Петербург","муниципальный округ Южно-Приморский","40355000"]
[90,"город Санкт-Петербург","муниципальный округ Юнтолово","40326000"]
[91,"город Санкт-Петербург","муниципальный округ округ Петровский","40393000"]
[92,"город Санкт-Петербург","поселок Александровская","40398000"]
[93,"город Санкт-Петербург","поселок Белоостров","40363000"]
[94,"город Санкт-Петербург","поселок Комарово","40364000"]
[95,"город Санкт-Петербург","поселок Левашово","40312000"]
[96,"город Санкт-Петербург","поселок Лисий Нос","40320000"]
[97,"город Санкт-Петербург","поселок Металлострой","40343000"]
[98,"город Санкт-Петербург","поселок Молодежное","40365000"]
[99,"город Санкт-Петербург","поселок Парголово","40313000"]
[100,"город Санкт-Петербург","поселок Песочный","40366000"]
[101,"город Санкт-Петербург","поселок Петро-Славянка","40344000"]
[102,"город Санкт-Петербург","поселок Понтонный","40345000"]
[103,"город Санкт-Петербург","поселок Репино","40367000"]
[104,"город Санкт-Петербург","поселок Саперный","40346000"]
[105,"город Санкт-Петербург","поселок Серово","40368000"]
[106,"город Санкт-Петербург","поселок Смолячково","40369000"]
[107,"город Санкт-Петербург","поселок Солнечное","40370000"]
[108,"город Санкт-Петербург","поселок Стрельна","40396000"]
[109,"город Санкт-Петербург","поселок Тярлево","40388000"]
[110,"город Санкт-Петербург","поселок Усть-Ижора","40347000"]
[111,"город Санкт-Петербург","поселок Ушково","40371000"]
[112,"город Санкт-Петербург","поселок Шушары","40901000"]

{"sheet":"REESTR_MO_FILTER","index":42,"n_rows":0,"n_cols":0,"rows_kept":0,"cut":false,"hidden":true,"merged":[]}

{"sheet":"modfrmReestrMR","index":43,"n_rows":0,"n_cols":0,"rows_kept":0,"cut":false,"hidden":true,"merged":[]}

{"sheet":"modServiceModule","index":44,"n_rows":0,"n_cols":0,"rows_kept":0,"cut":false,"hidden":true,"merged":[]}

{"sheet":"modfrmCheckUpdates","index":45,"n_rows":0,"n_cols":0,"rows_kept":0,"cut":false,"hidden":true,"merged":[]}

{"sheet":"REESTR_DS","index":46,"n_rows":3,"n_cols":2,"rows_kept":3,"cut":false,"hidden":true,"merged":[]}
[]
[]
[null,"город Санкт-Петербург, город Санкт-Петербург (40000000);"]

{"sheet":"REESTR_CHS","index":47,"n_rows":0,"n_cols":0,"rows_kept":0,"cut":false,"hidden":true,"merged":[]}

{"sheet":"REESTR_LINK","index":48,"n_rows":3,"n_cols":3,"rows_kept":3,"cut":false,"hidden":true,"merged":[]}
["ID","LINK_NAME","REGION"]
[4189678,"https://portal.eias.ru/Portal/DownloadPage.aspx?type=12&guid=????????-????-????-????-????????????","ALL"]
[4190415,"https://eias.fstrf.ru/disclo/get_file?p_guid=????????-????-????-????-????????????","ALL"]